Body Name,Body,Service Division,Expense Type,Date Paid,Transaction Ref,Invoice Amount,Supplier Name
South Holland District Council,http://statistics.data.gov.uk/id/local-authority/32UF,AD Housing,Buildings Maintenance - Responsive,05/01/2023,30024418,498.30 ,M-Fire Ltd
South Holland District Council,http://statistics.data.gov.uk/id/local-authority/32UF,AD Housing,Buildings Maintenance - Responsive,22/12/2022,30024462,478.34 ,Aaron Services Ltd
South Holland District Council,http://statistics.data.gov.uk/id/local-authority/32UF,AD Housing,Buildings Maintenance - Responsive,20/12/2022,30024526,512.79 ,Aaron Services Ltd
South Holland District Council,http://statistics.data.gov.uk/id/local-authority/32UF,AD Housing HRA,Agency Staff,08/12/2022,30023883,"1,083.32 ",James Andrew
South Holland District Council,http://statistics.data.gov.uk/id/local-authority/32UF,AD Housing HRA,Agency Staff,08/12/2022,30023884,526.68 ,Integrity Plus Ltd
South Holland District Council,http://statistics.data.gov.uk/id/local-authority/32UF,AD Housing HRA,Agency Staff,15/12/2022,30024282,510.72 ,Integrity Plus Ltd
South Holland District Council,http://statistics.data.gov.uk/id/local-authority/32UF,AD Housing HRA,Agency Staff,15/12/2022,30024290,"1,083.32 ",James Andrew
South Holland District Council,http://statistics.data.gov.uk/id/local-authority/32UF,AD Housing HRA,Agency Staff,20/12/2022,30024518,"1,102.22 ",James Andrew
South Holland District Council,http://statistics.data.gov.uk/id/local-authority/32UF,AD Housing HRA,Agency Staff,20/12/2022,30024546,"1,115.72 ",James Andrew
South Holland District Council,http://statistics.data.gov.uk/id/local-authority/32UF,AD Housing HRA,Agency Staff,20/12/2022,30024548,510.72 ,Integrity Plus Ltd
South Holland District Council,http://statistics.data.gov.uk/id/local-authority/32UF,AD Housing HRA,Buildings Maintenance - Responsive,20/12/2022,30023695,434.28 ,C G Godfrey Ltd
South Holland District Council,http://statistics.data.gov.uk/id/local-authority/32UF,AD Housing HRA,Buildings Maintenance - Responsive,20/12/2022,30023696,"1,524.29 ",C G Godfrey Ltd
South Holland District Council,http://statistics.data.gov.uk/id/local-authority/32UF,AD Housing HRA,Buildings Maintenance - Responsive,20/12/2022,30023697,625.57 ,C G Godfrey Ltd
South Holland District Council,http://statistics.data.gov.uk/id/local-authority/32UF,AD Housing HRA,Buildings Maintenance - Responsive,20/12/2022,30023698,"1,548.83 ",C G Godfrey Ltd
South Holland District Council,http://statistics.data.gov.uk/id/local-authority/32UF,AD Housing HRA,Buildings Maintenance - Responsive,02/12/2022,30023701,997.00 ,Boors Ltd
South Holland District Council,http://statistics.data.gov.uk/id/local-authority/32UF,AD Housing HRA,Buildings Maintenance - Responsive,02/12/2022,30023714,"1,125.00 ",Boors Ltd
South Holland District Council,http://statistics.data.gov.uk/id/local-authority/32UF,AD Housing HRA,Buildings Maintenance - Responsive,08/12/2022,30023916,812.00 ,M and R Glass and Glazing Ltd
South Holland District Council,http://statistics.data.gov.uk/id/local-authority/32UF,AD Housing HRA,Buildings Maintenance - Responsive,06/12/2022,30023944,"1,275.48 ",Stuart Taplin Plumbing and Build Maint
South Holland District Council,http://statistics.data.gov.uk/id/local-authority/32UF,AD Housing HRA,Buildings Maintenance - Responsive,06/12/2022,30023992,565.00 ,"""personal information redacted"""
South Holland District Council,http://statistics.data.gov.uk/id/local-authority/32UF,AD Housing HRA,Buildings Maintenance - Responsive,06/12/2022,30024001,795.00 ,"""personal information redacted"""
South Holland District Council,http://statistics.data.gov.uk/id/local-authority/32UF,AD Housing HRA,Buildings Maintenance - Responsive,08/12/2022,30024049,535.00 ,"""personal information redacted"""
South Holland District Council,http://statistics.data.gov.uk/id/local-authority/32UF,AD Housing HRA,Buildings Maintenance - Responsive,03/01/2023,30024343,"2,489.00 ",C G Godfrey Ltd
South Holland District Council,http://statistics.data.gov.uk/id/local-authority/32UF,AD Housing HRA,Buildings Maintenance - Responsive,03/01/2023,30024556,580.00 ,M and R Glass and Glazing Ltd
South Holland District Council,http://statistics.data.gov.uk/id/local-authority/32UF,AD Housing HRA,Cesspool Emptying,22/12/2022,30024044,"1,552.50 ",Dalrod Drainage Solutions
South Holland District Council,http://statistics.data.gov.uk/id/local-authority/32UF,AD Housing HRA,Cleaning Contract,15/12/2022,30024384,690.00 ,aAFD services Ltd
South Holland District Council,http://statistics.data.gov.uk/id/local-authority/32UF,AD Housing HRA,Cleaning Contract,05/01/2023,30024452,450.00 ,aAFD services Ltd
South Holland District Council,http://statistics.data.gov.uk/id/local-authority/32UF,AD Housing HRA,Clothing Uniforms and Laundry,22/12/2022,30024454,736.35 ,Seal Select Products Ltd
South Holland District Council,http://statistics.data.gov.uk/id/local-authority/32UF,AD Housing HRA,Damp Proofing,22/12/2022,30024587,590.00 ,"""personal information redacted"""
South Holland District Council,http://statistics.data.gov.uk/id/local-authority/32UF,AD Housing HRA,Drain Repairs,22/12/2022,30024106,"6,810.20 ",Dalrod Drainage Solutions
South Holland District Council,http://statistics.data.gov.uk/id/local-authority/32UF,AD Housing HRA,Electrical Upgrade,13/12/2022,30024231,"7,237.00 ",McIntyre Compliance Services
South Holland District Council,http://statistics.data.gov.uk/id/local-authority/32UF,AD Housing HRA,Fuel and Oil,08/12/2022,30024119,718.49 ,C H Jones Ltd
South Holland District Council,http://statistics.data.gov.uk/id/local-authority/32UF,AD Housing HRA,Fuel and Oil,20/12/2022,30024578,760.51 ,C H Jones Ltd
South Holland District Council,http://statistics.data.gov.uk/id/local-authority/32UF,AD Housing HRA,Fuel and Oil,22/12/2022,30024620,846.20 ,C H Jones Ltd
South Holland District Council,http://statistics.data.gov.uk/id/local-authority/32UF,AD Housing HRA,Furniture and Equipment,22/12/2022,30023953,992.25 ,Stannah
South Holland District Council,http://statistics.data.gov.uk/id/local-authority/32UF,AD Housing HRA,Furniture and Equipment,22/12/2022,30023994,832.68 ,Stannah
South Holland District Council,http://statistics.data.gov.uk/id/local-authority/32UF,AD Housing HRA,Furniture and Equipment,22/12/2022,30024107,768.82 ,Stannah
South Holland District Council,http://statistics.data.gov.uk/id/local-authority/32UF,AD Housing HRA,Gas Repairs,22/12/2022,30024463,"19,458.65 ",Aaron Services Ltd
South Holland District Council,http://statistics.data.gov.uk/id/local-authority/32UF,AD Housing HRA,Gas Servicing,22/12/2022,30024053,"23,555.78 ",Aaron Services Ltd
South Holland District Council,http://statistics.data.gov.uk/id/local-authority/32UF,AD Housing HRA,Grounds Maintenance Contract (External),02/12/2022,30023060,"1,730.00 ",Greenscape Tree Safe Ltd
South Holland District Council,http://statistics.data.gov.uk/id/local-authority/32UF,AD Housing HRA,Legal Fees,20/12/2022,30024112,"2,855.00 ",Capsticks Solicitors LLP
South Holland District Council,http://statistics.data.gov.uk/id/local-authority/32UF,AD Housing HRA,Maintenance of Footpaths and Roadways,20/12/2022,30024512,"3,597.02 ",C G Godfrey Ltd
South Holland District Council,http://statistics.data.gov.uk/id/local-authority/32UF,AD Housing HRA,Maintenance of Footpaths and Roadways,20/12/2022,30024513,"1,465.45 ",C G Godfrey Ltd
South Holland District Council,http://statistics.data.gov.uk/id/local-authority/32UF,AD Housing HRA,Maintenance of Footpaths and Roadways,20/12/2022,30024514,"3,663.63 ",C G Godfrey Ltd
South Holland District Council,http://statistics.data.gov.uk/id/local-authority/32UF,AD Housing HRA,Materials and Consumables,02/12/2022,30023740,423.71 ,EPH Supplies Wholesale Ltd
South Holland District Council,http://statistics.data.gov.uk/id/local-authority/32UF,AD Housing HRA,Materials and Consumables,02/12/2022,30023741,429.26 ,EPH Supplies Wholesale Ltd
South Holland District Council,http://statistics.data.gov.uk/id/local-authority/32UF,AD Housing HRA,Materials and Consumables,08/12/2022,30023948,743.14 ,EPH Supplies Wholesale Ltd
South Holland District Council,http://statistics.data.gov.uk/id/local-authority/32UF,AD Housing HRA,Materials and Consumables,13/12/2022,30024235,"4,308.80 ",Gibbs and Dandy
South Holland District Council,http://statistics.data.gov.uk/id/local-authority/32UF,AD Housing HRA,Materials and Consumables,22/12/2022,30024467,618.19 ,EPH Supplies Wholesale Ltd
South Holland District Council,http://statistics.data.gov.uk/id/local-authority/32UF,AD Housing HRA,Materials and Consumables,22/12/2022,30024468,568.28 ,EPH Supplies Wholesale Ltd
South Holland District Council,http://statistics.data.gov.uk/id/local-authority/32UF,AD Housing HRA,Materials and Consumables,22/12/2022,30024545,644.59 ,EPH Supplies Wholesale Ltd
South Holland District Council,http://statistics.data.gov.uk/id/local-authority/32UF,AD Housing HRA,Materials and Consumables,22/12/2022,30024584,744.33 ,EPH Supplies Wholesale Ltd
South Holland District Council,http://statistics.data.gov.uk/id/local-authority/32UF,AD Housing HRA,Materials and Consumables,03/01/2023,30024681,466.83 ,Saint Gobain Building Distribution
South Holland District Council,http://statistics.data.gov.uk/id/local-authority/32UF,AD Housing HRA,Materials and Consumables,03/01/2023,30024682,417.68 ,Saint Gobain Building Distribution
South Holland District Council,http://statistics.data.gov.uk/id/local-authority/32UF,AD Housing HRA,Materials and Consumables,03/01/2023,30024683,417.69 ,Saint Gobain Building Distribution
South Holland District Council,http://statistics.data.gov.uk/id/local-authority/32UF,AD Housing HRA,Materials and Consumables,03/01/2023,30024695,"4,132.41 ",Gibbs and Dandy
South Holland District Council,http://statistics.data.gov.uk/id/local-authority/32UF,AD Housing HRA,Materials and Consumables,03/01/2023,30024696,"4,549.14 ",Gibbs and Dandy
South Holland District Council,http://statistics.data.gov.uk/id/local-authority/32UF,AD Housing HRA,Materials and Consumables,03/01/2023,30024697,"3,774.16 ",Gibbs and Dandy
South Holland District Council,http://statistics.data.gov.uk/id/local-authority/32UF,AD Housing HRA,Materials and Consumables,03/01/2023,30024698,"3,467.77 ",Gibbs and Dandy
South Holland District Council,http://statistics.data.gov.uk/id/local-authority/32UF,AD Housing HRA,Materials and Consumables,03/01/2023,30024699,"3,402.43 ",Gibbs and Dandy
South Holland District Council,http://statistics.data.gov.uk/id/local-authority/32UF,AD Housing HRA,Postages,22/12/2022,30024217,428.86 ,Royal Mail Group Ltd
South Holland District Council,http://statistics.data.gov.uk/id/local-authority/32UF,AD Housing HRA,Professional and Contractors Fees,08/12/2022,30023873,"1,525.00 ",Eve Alexander Ltd
South Holland District Council,http://statistics.data.gov.uk/id/local-authority/32UF,AD Housing HRA,Professional and Contractors Fees,22/12/2022,30023877,"2,000.00 ",Calvert Brain & Fraulo Ltd
South Holland District Council,http://statistics.data.gov.uk/id/local-authority/32UF,AD Housing HRA,Professional and Contractors Fees,22/12/2022,30023913,"1,100.00 ",NEC Software Solutions UK Ltd
South Holland District Council,http://statistics.data.gov.uk/id/local-authority/32UF,AD Housing HRA,Professional and Contractors Fees,22/12/2022,30023932,"1,520.00 ",Environtec Limited
South Holland District Council,http://statistics.data.gov.uk/id/local-authority/32UF,AD Housing HRA,Professional and Contractors Fees,22/12/2022,30023985,900.00 ,Calvert Brain & Fraulo Ltd
South Holland District Council,http://statistics.data.gov.uk/id/local-authority/32UF,AD Housing HRA,Professional and Contractors Fees,22/12/2022,30023988,"1,036.00 ",Language Line Ltd
South Holland District Council,http://statistics.data.gov.uk/id/local-authority/32UF,AD Housing HRA,Professional and Contractors Fees,22/12/2022,30024131,592.50 ,Morgan Lambert Ltd 2018
South Holland District Council,http://statistics.data.gov.uk/id/local-authority/32UF,AD Housing HRA,Roof Repairs,22/12/2022,30023819,"4,988.68 ",Hodgson Sayers Ltd
South Holland District Council,http://statistics.data.gov.uk/id/local-authority/32UF,AD Housing HRA,Roof Repairs,06/12/2022,30023957,790.00 ,Kev Forman Roofing
South Holland District Council,http://statistics.data.gov.uk/id/local-authority/32UF,AD Housing HRA,Roof Repairs,06/12/2022,30023960,890.00 ,Kev Forman Roofing
South Holland District Council,http://statistics.data.gov.uk/id/local-authority/32UF,AD Housing HRA,Roof Repairs,06/12/2022,30023971,890.00 ,Kev Forman Roofing
South Holland District Council,http://statistics.data.gov.uk/id/local-authority/32UF,AD Housing HRA,Roof Repairs,06/12/2022,30023973,820.00 ,Kev Forman Roofing
South Holland District Council,http://statistics.data.gov.uk/id/local-authority/32UF,AD Housing HRA,Roof Repairs,06/12/2022,30023976,"1,040.00 ",Kev Forman Roofing
South Holland District Council,http://statistics.data.gov.uk/id/local-authority/32UF,AD Housing HRA,Roof Repairs,13/12/2022,30024113,720.00 ,Kev Forman Roofing
South Holland District Council,http://statistics.data.gov.uk/id/local-authority/32UF,AD Housing HRA,Roof Repairs,03/01/2023,30024555,"2,040.00 ",Kev Forman Roofing
South Holland District Council,http://statistics.data.gov.uk/id/local-authority/32UF,AD Housing HRA,Roof Repairs,03/01/2023,30024559,640.00 ,Kev Forman Roofing
South Holland District Council,http://statistics.data.gov.uk/id/local-authority/32UF,AD Housing HRA,Roof Repairs,03/01/2023,30024560,800.00 ,Kev Forman Roofing
South Holland District Council,http://statistics.data.gov.uk/id/local-authority/32UF,AD Housing HRA,Roof Repairs,03/01/2023,30024561,720.00 ,Kev Forman Roofing
South Holland District Council,http://statistics.data.gov.uk/id/local-authority/32UF,AD Housing HRA,Roof Repairs,03/01/2023,30024562,740.00 ,Kev Forman Roofing
South Holland District Council,http://statistics.data.gov.uk/id/local-authority/32UF,AD Housing HRA,Roof Repairs,03/01/2023,30024563,790.00 ,Kev Forman Roofing
South Holland District Council,http://statistics.data.gov.uk/id/local-authority/32UF,AD Housing HRA,Roof Repairs,03/01/2023,30024564,790.00 ,Kev Forman Roofing
South Holland District Council,http://statistics.data.gov.uk/id/local-authority/32UF,AD Housing HRA,Solid Fuel Servicing,22/12/2022,30024054,"2,167.20 ",Aaron Services Ltd
South Holland District Council,http://statistics.data.gov.uk/id/local-authority/32UF,AD Housing HRA,Solid Fuel Servicing,22/12/2022,30024464,537.85 ,Aaron Services Ltd
South Holland District Council,http://statistics.data.gov.uk/id/local-authority/32UF,AD Housing HRA,Staff Training Expenses (Non-Payroll),13/12/2022,30024122,"1,179.42 ",Sandra Whiles Coaching Ltd
South Holland District Council,http://statistics.data.gov.uk/id/local-authority/32UF,AD Housing HRA,Void Repairs,02/12/2022,30023711,"2,150.00 ",Boors Ltd
South Holland District Council,http://statistics.data.gov.uk/id/local-authority/32UF,AD Housing HRA,Void Repairs,02/12/2022,30023713,"11,410.00 ",Boors Ltd
South Holland District Council,http://statistics.data.gov.uk/id/local-authority/32UF,AD Housing HRA,Void Repairs,08/12/2022,30023916,845.00 ,M and R Glass and Glazing Ltd
South Holland District Council,http://statistics.data.gov.uk/id/local-authority/32UF,AD Housing HRA,Void Repairs,03/01/2023,30024556,352.00 ,M and R Glass and Glazing Ltd
South Holland District Council,http://statistics.data.gov.uk/id/local-authority/32UF,AD Housing HRA,Works to Buildings (Main Contractor),13/12/2022,30024223,"3,900.00 ",C G Godfrey Ltd
South Holland District Council,http://statistics.data.gov.uk/id/local-authority/32UF,AD Housing HRA,Works to Buildings (Main Contractor),13/12/2022,30024252,"13,248.36 ",McIntyre Compliance Services
South Holland District Council,http://statistics.data.gov.uk/id/local-authority/32UF,AD Housing HRA,Works to Buildings (Main Contractor),15/12/2022,30024344,"1,595.00 ",C G Godfrey Ltd
South Holland District Council,http://statistics.data.gov.uk/id/local-authority/32UF,AD Housing HRA,Works to Buildings (Main Contractor),15/12/2022,30024393,"24,815.68 ",D Brown Building Contractors Ltd
South Holland District Council,http://statistics.data.gov.uk/id/local-authority/32UF,AD Housing HRA,Works to Buildings (Main Contractor),15/12/2022,30024394,"9,683.37 ",D Brown Building Contractors Ltd
South Holland District Council,http://statistics.data.gov.uk/id/local-authority/32UF,AD Housing HRA,Works to Buildings (Main Contractor),15/12/2022,30024395,"89,143.70 ",D Brown Building Contractors Ltd
South Holland District Council,http://statistics.data.gov.uk/id/local-authority/32UF,AD Housing HRA,Works to Buildings (Main Contractor),15/12/2022,30024396,"25,785.53 ",D Brown Building Contractors Ltd
South Holland District Council,http://statistics.data.gov.uk/id/local-authority/32UF,AD Housing HRA,Works to Buildings (Main Contractor),22/12/2022,30024410,"3,855.00 ",Obam Domestic Lift Services Ltd
South Holland District Council,http://statistics.data.gov.uk/id/local-authority/32UF,AD Housing HRA,Works to Buildings (Main Contractor),15/12/2022,30024442,"8,740.88 ",Hodgson Sayers Ltd
South Holland District Council,http://statistics.data.gov.uk/id/local-authority/32UF,AD Housing HRA,Works to Buildings (Main Contractor),22/12/2022,30024477,"22,962.86 ",Aaron Services Ltd
South Holland District Council,http://statistics.data.gov.uk/id/local-authority/32UF,AD Housing HRA,Works to Buildings (Main Contractor),22/12/2022,30024483,"9,572.38 ",Aaron Services Ltd
South Holland District Council,http://statistics.data.gov.uk/id/local-authority/32UF,AD Housing HRA,Works to Buildings (Main Contractor),22/12/2022,30024500,"23,572.97 ",Aaron Services Ltd
South Holland District Council,http://statistics.data.gov.uk/id/local-authority/32UF,AD Housing HRA,Works to Buildings (Main Contractor),22/12/2022,30024533,"175,451.21 ",Hodgson Sayers Ltd
South Holland District Council,http://statistics.data.gov.uk/id/local-authority/32UF,AD Housing HRA,Works to Buildings (Main Contractor),22/12/2022,30024617,"14,157.78 ",JPG Builders
South Holland District Council,http://statistics.data.gov.uk/id/local-authority/32UF,AD Housing HRA,Works to Buildings (Main Contractor),22/12/2022,30024619,"12,029.62 ",JPG Builders
South Holland District Council,http://statistics.data.gov.uk/id/local-authority/32UF,AD Housing HRA,Works to Buildings (Main Contractor),03/01/2023,30024636,"16,953.94 ",D Brown Building Contractors Ltd
South Holland District Council,http://statistics.data.gov.uk/id/local-authority/32UF,AD Leisure and Culture,Professional and Contractors Fees,06/12/2022,30023744,424.30 ,Crusader Traffic Ltd
South Holland District Council,http://statistics.data.gov.uk/id/local-authority/32UF,AD Neighbourhoods,Purchase of Vehicles,13/12/2022,30024045,"44,500.00 ",John W Doubleday Ltd
South Holland District Council,http://statistics.data.gov.uk/id/local-authority/32UF,AD Strategic Growth and Development,Grants and Contributions - Where a Service is Received,02/12/2022,30023822,"4,745.00 ",South Holland Parish Voluntary Car Schem
South Holland District Council,http://statistics.data.gov.uk/id/local-authority/32UF,AD Strategic Growth and Development,Other Miscellaneous Expenses,06/12/2022,30024034,"1,258.00 ",The Stall Hire Company
South Holland District Council,http://statistics.data.gov.uk/id/local-authority/32UF,AD Strategic Growth and Development,Other Miscellaneous Expenses,15/12/2022,30024369,"1,682.00 ",South Lincs Security Limited
South Holland District Council,http://statistics.data.gov.uk/id/local-authority/32UF,AD Strategic Growth and Development,Other Miscellaneous Expenses,20/12/2022,30024458,"1,800.00 ",Popcorn Media
South Holland District Council,http://statistics.data.gov.uk/id/local-authority/32UF,AD Strategic Growth and Development,Performers and Entertainers Fees,22/12/2022,30023871,505.00 ,Rhubarb Theatre
South Holland District Council,http://statistics.data.gov.uk/id/local-authority/32UF,AD Strategic Growth and Development,Performers and Entertainers Fees,13/12/2022,30024262,770.00 ,Rubys and Diamonds
South Holland District Council,http://statistics.data.gov.uk/id/local-authority/32UF,AD Strategic Growth and Development,Professional and Contractors Fees,08/12/2022,30022641,715.50 ,Land Survey Solutions Ltd
South Holland District Council,http://statistics.data.gov.uk/id/local-authority/32UF,AD Strategic Growth and Development,Professional and Contractors Fees,02/12/2022,30022642,625.50 ,Land Survey Solutions Ltd
South Holland District Council,http://statistics.data.gov.uk/id/local-authority/32UF,AD Strategic Growth and Development,Professional and Contractors Fees,06/12/2022,30023915,"11,042.75 ",Simply Chill
South Holland District Council,http://statistics.data.gov.uk/id/local-authority/32UF,AD Strategic Growth and Development,Professional and Contractors Fees,15/12/2022,30024194,"2,436.20 ",Robert Doughty Consultancy
South Holland District Council,http://statistics.data.gov.uk/id/local-authority/32UF,AD Strategic Growth and Development,Rent Payments,20/12/2022,30023727,655.40 ,"""personal information redacted"""
South Holland District Council,http://statistics.data.gov.uk/id/local-authority/32UF,AD Strategic Growth and Development,Works to Buildings (Main Contractor),08/12/2022,30023820,"3,265.00 ",Kev Forman Roofing
South Holland District Council,http://statistics.data.gov.uk/id/local-authority/32UF,AD Strategic Growth and Development,Works to Buildings (Main Contractor),08/12/2022,30023987,"27,180.26 ",T M Browne Ltd
South Holland District Council,http://statistics.data.gov.uk/id/local-authority/32UF,AD Strategic Growth and Development,Works to Buildings (Main Contractor),20/12/2022,30024566,"9,871.62 ",T M Browne Ltd
South Holland District Council,http://statistics.data.gov.uk/id/local-authority/32UF,AD Strategic Growth and Development,Works to Buildings (Sub Contractors),20/12/2022,30024482,"3,060.00 ","""personal information redacted"""
South Holland District Council,http://statistics.data.gov.uk/id/local-authority/32UF,AD Strategic Growth and Development HRA,Agency Staff,02/12/2022,30023774,"2,750.00 ",Park Avenue Recruitment Ltd
South Holland District Council,http://statistics.data.gov.uk/id/local-authority/32UF,AD Strategic Growth and Development HRA,Agency Staff,20/12/2022,30024225,"1,650.00 ",Park Avenue Recruitment Ltd
South Holland District Council,http://statistics.data.gov.uk/id/local-authority/32UF,AD Strategic Growth and Development HRA,Agency Staff,20/12/2022,30024433,"2,750.00 ",Park Avenue Recruitment Ltd
South Holland District Council,http://statistics.data.gov.uk/id/local-authority/32UF,AD Strategic Growth and Development HRA,Professional and Contractors Fees,22/12/2022,30023962,750.00 ,RG & P Living Ltd
South Holland District Council,http://statistics.data.gov.uk/id/local-authority/32UF,AD Strategic Growth and Development HRA,Professional and Contractors Fees,22/12/2022,30024453,"1,800.00 ",Sky Revolutions Ltd
South Holland District Council,http://statistics.data.gov.uk/id/local-authority/32UF,AD Strategic Growth and Development HRA,Professional and Contractors Fees,20/12/2022,30024459,750.00 ,Messrs Longstaff and Co
South Holland District Council,http://statistics.data.gov.uk/id/local-authority/32UF,AD Strategic Growth and Development HRA,Professional and Contractors Fees,20/12/2022,30024460,"1,125.00 ",Messrs Longstaff and Co
South Holland District Council,http://statistics.data.gov.uk/id/local-authority/32UF,AD Strategic Growth and Development HRA,Professional and Contractors Fees,03/01/2023,30024622,900.00 ,CWH Surveyors LLP
South Holland District Council,http://statistics.data.gov.uk/id/local-authority/32UF,AD Wellbeing and Community Leadership,Agency Staff,15/12/2022,30024432,940.50 ,Park Avenue Recruitment Ltd
South Holland District Council,http://statistics.data.gov.uk/id/local-authority/32UF,AD Wellbeing and Community Leadership,Bed and Breakfast Accommodation (Homelessness Service),08/12/2022,30023601,"1,250.00 ",Riverside Hotel
South Holland District Council,http://statistics.data.gov.uk/id/local-authority/32UF,AD Wellbeing and Community Leadership,Bed and Breakfast Accommodation (Homelessness Service),08/12/2022,30023602,"1,516.66 ",Riverside Hotel
South Holland District Council,http://statistics.data.gov.uk/id/local-authority/32UF,AD Wellbeing and Community Leadership,Bed and Breakfast Accommodation (Homelessness Service),08/12/2022,30023603,"2,508.34 ",Riverside Hotel
South Holland District Council,http://statistics.data.gov.uk/id/local-authority/32UF,AD Wellbeing and Community Leadership,Bed and Breakfast Accommodation (Homelessness Service),06/12/2022,30023897,"1,085.00 ",Anglia Motel
South Holland District Council,http://statistics.data.gov.uk/id/local-authority/32UF,AD Wellbeing and Community Leadership,Bed and Breakfast Accommodation (Homelessness Service),06/12/2022,30023898,"1,085.00 ",Anglia Motel
South Holland District Council,http://statistics.data.gov.uk/id/local-authority/32UF,AD Wellbeing and Community Leadership,Bed and Breakfast Accommodation (Homelessness Service),06/12/2022,30023899,"1,085.00 ",Anglia Motel
South Holland District Council,http://statistics.data.gov.uk/id/local-authority/32UF,AD Wellbeing and Community Leadership,Bed and Breakfast Accommodation (Homelessness Service),06/12/2022,30023900,"1,085.00 ",Anglia Motel
South Holland District Council,http://statistics.data.gov.uk/id/local-authority/32UF,AD Wellbeing and Community Leadership,Bed and Breakfast Accommodation (Homelessness Service),08/12/2022,30023954,"1,600.00 ",The Mansion House Hotel
South Holland District Council,http://statistics.data.gov.uk/id/local-authority/32UF,AD Wellbeing and Community Leadership,Bed and Breakfast Accommodation (Homelessness Service),08/12/2022,30023956,"1,233.32 ",The Mansion House Hotel
South Holland District Council,http://statistics.data.gov.uk/id/local-authority/32UF,AD Wellbeing and Community Leadership,Bed and Breakfast Accommodation (Homelessness Service),08/12/2022,30023958,"1,108.34 ",The Mansion House Hotel
South Holland District Council,http://statistics.data.gov.uk/id/local-authority/32UF,AD Wellbeing and Community Leadership,Bed and Breakfast Accommodation (Homelessness Service),08/12/2022,30023959,"1,061.66 ",The Mansion House Hotel
South Holland District Council,http://statistics.data.gov.uk/id/local-authority/32UF,AD Wellbeing and Community Leadership,Bed and Breakfast Accommodation (Homelessness Service),08/12/2022,30023961,933.34 ,The Mansion House Hotel
South Holland District Council,http://statistics.data.gov.uk/id/local-authority/32UF,AD Wellbeing and Community Leadership,Bed and Breakfast Accommodation (Homelessness Service),08/12/2022,30024016,"1,108.34 ",the Anchor Inn
South Holland District Council,http://statistics.data.gov.uk/id/local-authority/32UF,AD Wellbeing and Community Leadership,Bed and Breakfast Accommodation (Homelessness Service),08/12/2022,30024017,"1,108.34 ",the Anchor Inn
South Holland District Council,http://statistics.data.gov.uk/id/local-authority/32UF,AD Wellbeing and Community Leadership,Bed and Breakfast Accommodation (Homelessness Service),08/12/2022,30024018,"1,108.34 ",the Anchor Inn
South Holland District Council,http://statistics.data.gov.uk/id/local-authority/32UF,AD Wellbeing and Community Leadership,Bed and Breakfast Accommodation (Homelessness Service),08/12/2022,30024020,"1,108.34 ",the Anchor Inn
South Holland District Council,http://statistics.data.gov.uk/id/local-authority/32UF,AD Wellbeing and Community Leadership,Bed and Breakfast Accommodation (Homelessness Service),08/12/2022,30024021,"1,225.00 ",the Anchor Inn
South Holland District Council,http://statistics.data.gov.uk/id/local-authority/32UF,AD Wellbeing and Community Leadership,Bed and Breakfast Accommodation (Homelessness Service),15/12/2022,30024036,"1,400.00 ",The Boat House
South Holland District Council,http://statistics.data.gov.uk/id/local-authority/32UF,AD Wellbeing and Community Leadership,Bed and Breakfast Accommodation (Homelessness Service),15/12/2022,30024038,"1,400.00 ",The Boat House
South Holland District Council,http://statistics.data.gov.uk/id/local-authority/32UF,AD Wellbeing and Community Leadership,Bed and Breakfast Accommodation (Homelessness Service),13/12/2022,30024039,"1,400.00 ",The Boat House
South Holland District Council,http://statistics.data.gov.uk/id/local-authority/32UF,AD Wellbeing and Community Leadership,Bed and Breakfast Accommodation (Homelessness Service),13/12/2022,30024042,"1,310.00 ",The Boat House
South Holland District Council,http://statistics.data.gov.uk/id/local-authority/32UF,AD Wellbeing and Community Leadership,Bed and Breakfast Accommodation (Homelessness Service),15/12/2022,30024043,"1,310.00 ",The Boat House
South Holland District Council,http://statistics.data.gov.uk/id/local-authority/32UF,AD Wellbeing and Community Leadership,Bed and Breakfast Accommodation (Homelessness Service),22/12/2022,30024210,"3,033.52 ",Twenty Hotel and Bar (Boston) Ltd
South Holland District Council,http://statistics.data.gov.uk/id/local-authority/32UF,AD Wellbeing and Community Leadership,Bed and Breakfast Accommodation (Homelessness Service),15/12/2022,30024253,"1,233.32 ",The Mansion House Hotel
South Holland District Council,http://statistics.data.gov.uk/id/local-authority/32UF,AD Wellbeing and Community Leadership,Bed and Breakfast Accommodation (Homelessness Service),15/12/2022,30024254,"1,108.34 ",The Mansion House Hotel
South Holland District Council,http://statistics.data.gov.uk/id/local-authority/32UF,AD Wellbeing and Community Leadership,Bed and Breakfast Accommodation (Homelessness Service),15/12/2022,30024255,"1,061.66 ",The Mansion House Hotel
South Holland District Council,http://statistics.data.gov.uk/id/local-authority/32UF,AD Wellbeing and Community Leadership,Bed and Breakfast Accommodation (Homelessness Service),15/12/2022,30024256,933.34 ,The Mansion House Hotel
South Holland District Council,http://statistics.data.gov.uk/id/local-authority/32UF,AD Wellbeing and Community Leadership,Bed and Breakfast Accommodation (Homelessness Service),15/12/2022,30024299,"1,085.00 ",Anglia Motel
South Holland District Council,http://statistics.data.gov.uk/id/local-authority/32UF,AD Wellbeing and Community Leadership,Bed and Breakfast Accommodation (Homelessness Service),15/12/2022,30024300,"1,085.00 ",Anglia Motel
South Holland District Council,http://statistics.data.gov.uk/id/local-authority/32UF,AD Wellbeing and Community Leadership,Bed and Breakfast Accommodation (Homelessness Service),15/12/2022,30024301,"1,085.00 ",Anglia Motel
South Holland District Council,http://statistics.data.gov.uk/id/local-authority/32UF,AD Wellbeing and Community Leadership,Bed and Breakfast Accommodation (Homelessness Service),15/12/2022,30024303,"1,085.00 ",Anglia Motel
South Holland District Council,http://statistics.data.gov.uk/id/local-authority/32UF,AD Wellbeing and Community Leadership,Bed and Breakfast Accommodation (Homelessness Service),15/12/2022,30024308,"1,085.00 ",Anglia Motel
South Holland District Council,http://statistics.data.gov.uk/id/local-authority/32UF,AD Wellbeing and Community Leadership,Bed and Breakfast Accommodation (Homelessness Service),15/12/2022,30024309,"1,085.00 ",Anglia Motel
South Holland District Council,http://statistics.data.gov.uk/id/local-authority/32UF,AD Wellbeing and Community Leadership,Bed and Breakfast Accommodation (Homelessness Service),15/12/2022,30024310,"1,085.00 ",Anglia Motel
South Holland District Council,http://statistics.data.gov.uk/id/local-authority/32UF,AD Wellbeing and Community Leadership,Bed and Breakfast Accommodation (Homelessness Service),15/12/2022,30024311,"1,085.00 ",Anglia Motel
South Holland District Council,http://statistics.data.gov.uk/id/local-authority/32UF,AD Wellbeing and Community Leadership,Grants and Contributions to Outside Bodies - No Service Received,02/12/2022,30023806,"11,113.98 ",Warics Ltd
South Holland District Council,http://statistics.data.gov.uk/id/local-authority/32UF,AD Wellbeing and Community Leadership,Grants and Contributions to Outside Bodies - No Service Received,06/12/2022,30023949,"7,420.00 ",Closomat Ltd
South Holland District Council,http://statistics.data.gov.uk/id/local-authority/32UF,AD Wellbeing and Community Leadership,Grants and Contributions to Outside Bodies - No Service Received,22/12/2022,30024616,"76,766.40 ",Martin Greaves Building Contractor
South Holland District Council,http://statistics.data.gov.uk/id/local-authority/32UF,AD Wellbeing and Community Leadership,Grants and Contributions to Outside Bodies - No Service Received,22/12/2022,30024618,"15,400.00 ",Martin Greaves Building Contractor
South Holland District Council,http://statistics.data.gov.uk/id/local-authority/32UF,AD Wellbeing and Community Leadership,Other Income,06/12/2022,30023911,"73,773.44 ","""personal information redacted"""
South Holland District Council,http://statistics.data.gov.uk/id/local-authority/32UF,AD Wellbeing and Community Leadership,Subscriptions to Organisations and Other Bodies,22/12/2022,30024296,"4,000.00 ",Derby City Council
South Holland District Council,http://statistics.data.gov.uk/id/local-authority/32UF,Asset & Property,Agency Staff,02/12/2022,30023872,"2,222.24 ",Integrity Plus Ltd
South Holland District Council,http://statistics.data.gov.uk/id/local-authority/32UF,Asset & Property,Agency Staff,02/12/2022,30023875,"1,041.85 ",Integrity Plus Ltd
South Holland District Council,http://statistics.data.gov.uk/id/local-authority/32UF,Asset & Property,Agency Staff,08/12/2022,30024134,754.18 ,Integrity Plus Ltd
South Holland District Council,http://statistics.data.gov.uk/id/local-authority/32UF,Asset & Property,Agency Staff,08/12/2022,30024137,"1,978.21 ",Integrity Plus Ltd
South Holland District Council,http://statistics.data.gov.uk/id/local-authority/32UF,Asset & Property,Agency Staff,15/12/2022,30024413,"2,281.40 ",Integrity Plus Ltd
South Holland District Council,http://statistics.data.gov.uk/id/local-authority/32UF,Asset & Property,Fuel and Oil,08/12/2022,30024119,206.21 ,C H Jones Ltd
South Holland District Council,http://statistics.data.gov.uk/id/local-authority/32UF,Asset & Property,Fuel and Oil,20/12/2022,30024578,369.00 ,C H Jones Ltd
South Holland District Council,http://statistics.data.gov.uk/id/local-authority/32UF,Asset & Property,Fuel and Oil,22/12/2022,30024620,158.26 ,C H Jones Ltd
South Holland District Council,http://statistics.data.gov.uk/id/local-authority/32UF,Asset & Property,Professional and Contractors Fees,15/12/2022,30023885,"2,688.40 ",GBSG Ltd
South Holland District Council,http://statistics.data.gov.uk/id/local-authority/32UF,Asset & Property,Tyres,20/12/2022,30024457,84.00 ,Vaculug Technologies Ltd
South Holland District Council,http://statistics.data.gov.uk/id/local-authority/32UF,Building Control,Buildings Maintenance - Programmed,02/12/2022,30023823,935.00 ,Stuart Taplin Plumbing and Build Maint
South Holland District Council,http://statistics.data.gov.uk/id/local-authority/32UF,Capital - Strategic Finance & Compliance,Buildings Maintenance - Programmed,06/12/2022,30023764,747.00 ,LJ Landscapes Ltd
South Holland District Council,http://statistics.data.gov.uk/id/local-authority/32UF,Capital - Strategic Finance & Compliance,Buildings Maintenance - Programmed,08/12/2022,30023986,"1,709.85 ",Oglesby and Limb Ltd
South Holland District Council,http://statistics.data.gov.uk/id/local-authority/32UF,Capital - Strategic Finance & Compliance,Buildings Maintenance - Programmed,08/12/2022,30024012,"15,322.43 ",Vere Bros (Contractors) Ltd
South Holland District Council,http://statistics.data.gov.uk/id/local-authority/32UF,Capital - Strategic Finance & Compliance,Buildings Maintenance - Programmed,08/12/2022,30024015,"2,225.00 ",Vere Bros (Contractors) Ltd
South Holland District Council,http://statistics.data.gov.uk/id/local-authority/32UF,Capital - Strategic Finance & Compliance,Buildings Maintenance - Programmed,13/12/2022,30024103,431.00 ,M and R Glass and Glazing Ltd
South Holland District Council,http://statistics.data.gov.uk/id/local-authority/32UF,Capital - Strategic Finance & Compliance,Buildings Maintenance - Programmed,13/12/2022,30024245,590.00 ,EPC Services
South Holland District Council,http://statistics.data.gov.uk/id/local-authority/32UF,Capital - Strategic Finance & Compliance,Buildings Maintenance - Programmed,13/12/2022,30024275,720.00 ,Drains R Us (Eastern) Ltd
South Holland District Council,http://statistics.data.gov.uk/id/local-authority/32UF,Capital - Strategic Finance & Compliance,Buildings Maintenance - Programmed,22/12/2022,30024354,975.00 ,R J Flower Contracting
South Holland District Council,http://statistics.data.gov.uk/id/local-authority/32UF,Capital - Strategic Finance & Compliance,Buildings Maintenance - Programmed,22/12/2022,30024356,"1,350.00 ",R J Flower Contracting
South Holland District Council,http://statistics.data.gov.uk/id/local-authority/32UF,Capital - Strategic Finance & Compliance,Buildings Maintenance - Programmed,22/12/2022,30024357,"1,750.00 ",R J Flower Contracting
South Holland District Council,http://statistics.data.gov.uk/id/local-authority/32UF,Capital - Strategic Finance & Compliance,Buildings Maintenance - Responsive,08/12/2022,30023914,"1,096.23 ",GBSG Ltd
South Holland District Council,http://statistics.data.gov.uk/id/local-authority/32UF,Capital - Strategic Finance & Compliance,Buildings Maintenance - Responsive,08/12/2022,30024104,"1,286.80 ",G W Engineering (Lincs) Ltd
South Holland District Council,http://statistics.data.gov.uk/id/local-authority/32UF,Capital - Strategic Finance & Compliance,Buildings Maintenance - Responsive,22/12/2022,30024358,"1,100.00 ",R J Flower Contracting
South Holland District Council,http://statistics.data.gov.uk/id/local-authority/32UF,Capital - Strategic Finance & Compliance,Buildings Maintenance - Responsive,22/12/2022,30024359,875.00 ,R J Flower Contracting
South Holland District Council,http://statistics.data.gov.uk/id/local-authority/32UF,Capital - Strategic Finance & Compliance,Buildings Maintenance - Responsive,22/12/2022,30024599,900.00 ,SM Painting & Decorating Ltd
South Holland District Council,http://statistics.data.gov.uk/id/local-authority/32UF,Capital - Strategic Finance & Compliance,Demolition/Site Clearance Costs,22/12/2022,30024355,"5,850.00 ",R J Flower Contracting
South Holland District Council,http://statistics.data.gov.uk/id/local-authority/32UF,Capital - Strategic Finance & Compliance,Furniture and Equipment,13/12/2022,30024207,"4,080.00 ",Wrights Flooring and Carpets Ltd
South Holland District Council,http://statistics.data.gov.uk/id/local-authority/32UF,Capital - Strategic Finance & Compliance,Furniture and Equipment,20/12/2022,30024430,"7,824.00 ",E.ON Energy Solutions Ltd
South Holland District Council,http://statistics.data.gov.uk/id/local-authority/32UF,Capital - Strategic Finance & Compliance,Gas,08/12/2022,30024071,"1,737.66 ",Espo Gas and Electricity
South Holland District Council,http://statistics.data.gov.uk/id/local-authority/32UF,Capital - Strategic Finance & Compliance,Professional and Contractors Fees,15/12/2022,30024409,900.00 ,Eunomia Research & Consulting Ltd
South Holland District Council,http://statistics.data.gov.uk/id/local-authority/32UF,Capital - Strategic Finance & Compliance,Water and Sewerage Charges,15/12/2022,30024391,"1,193.33 ",Wave
South Holland District Council,http://statistics.data.gov.uk/id/local-authority/32UF,Capital - Strategic Finance & Compliance,Works to Buildings (Main Contractor),08/12/2022,30022324,"20,000.00 ","""personal information redacted"""
South Holland District Council,http://statistics.data.gov.uk/id/local-authority/32UF,Capital - Strategic Finance & Compliance,Works to Buildings (Main Contractor),08/12/2022,30024008,"91,824.61 ",Vere Bros (Contractors) Ltd
South Holland District Council,http://statistics.data.gov.uk/id/local-authority/32UF,Capital - Strategic Finance & Compliance,Works to Buildings (Main Contractor),08/12/2022,30024009,"6,353.00 ",Vere Bros (Contractors) Ltd
South Holland District Council,http://statistics.data.gov.uk/id/local-authority/32UF,Capital - Strategic Finance & Compliance,Works to Buildings (Main Contractor),08/12/2022,30024010,"4,718.00 ",Vere Bros (Contractors) Ltd
South Holland District Council,http://statistics.data.gov.uk/id/local-authority/32UF,Capital - Strategic Finance & Compliance,Works to Buildings (Main Contractor),08/12/2022,30024011,"23,949.00 ",Vere Bros (Contractors) Ltd
South Holland District Council,http://statistics.data.gov.uk/id/local-authority/32UF,Capital - Strategic Finance & Compliance,Works to Buildings (Main Contractor),15/12/2022,30024278,"1,000.00 ",Oglesby and Limb Ltd
South Holland District Council,http://statistics.data.gov.uk/id/local-authority/32UF,Democratic Services - Democratic,Other Miscellaneous Expenses,13/12/2022,30024171,"1,050.00 ",Mencap Central Region
South Holland District Council,http://statistics.data.gov.uk/id/local-authority/32UF,Democratic Services - Democratic,Postages,20/12/2022,30023789,"1,581.40 ",Civica Election Services
South Holland District Council,http://statistics.data.gov.uk/id/local-authority/32UF,Democratic Services - Democratic,Postages,22/12/2022,30023983,611.25 ,Civica Election Services
South Holland District Council,http://statistics.data.gov.uk/id/local-authority/32UF,Democratic Services - Democratic,Stationery,20/12/2022,30023789,644.23 ,Civica Election Services
South Holland District Council,http://statistics.data.gov.uk/id/local-authority/32UF,Democratic Services - Democratic,Stationery,22/12/2022,30023983,899.80 ,Civica Election Services
South Holland District Council,http://statistics.data.gov.uk/id/local-authority/32UF,Democratic Services - Legal,Legal Fees,15/12/2022,30024261,"5,306.63 ",Lincolnshire County Council
South Holland District Council,http://statistics.data.gov.uk/id/local-authority/32UF,Economic Development,Furniture and Equipment,05/01/2023,30024364,"7,552.00 ",Cozens UK Ltd
South Holland District Council,http://statistics.data.gov.uk/id/local-authority/32UF,Economic Development,Grants and Contributions to Outside Bodies - No Service Received,02/12/2022,30023807,"11,938.00 ",Panoramix ltd
South Holland District Council,http://statistics.data.gov.uk/id/local-authority/32UF,Economic Development,Grants and Contributions to Outside Bodies - No Service Received,13/12/2022,30024277,"5,060.00 ",The Edwards Potato Vodka Company Ltd
South Holland District Council,http://statistics.data.gov.uk/id/local-authority/32UF,Economic Development,Grants and Contributions to Outside Bodies - No Service Received,13/12/2022,30024279,"7,250.00 ",Andrew Sims Bespoke Kitchens Ltd
South Holland District Council,http://statistics.data.gov.uk/id/local-authority/32UF,Economic Development,Grants and Contributions to Outside Bodies - No Service Received,13/12/2022,30024287,"8,450.00 ",Kapok (1988) Ltd
South Holland District Council,http://statistics.data.gov.uk/id/local-authority/32UF,Economic Development,Grants and Contributions to Outside Bodies - No Service Received,13/12/2022,30024289,"1,221.00 ",WS Barrett & Son Ltd
South Holland District Council,http://statistics.data.gov.uk/id/local-authority/32UF,Economic Development,Grants and Contributions to Outside Bodies - No Service Received,13/12/2022,30024298,"10,442.73 ",Kirk Homes Ltd
South Holland District Council,http://statistics.data.gov.uk/id/local-authority/32UF,Economic Development,Grants and Contributions to Outside Bodies - No Service Received,20/12/2022,30024540,"11,493.00 ",GT Agricultural Engineering Ltd
South Holland District Council,http://statistics.data.gov.uk/id/local-authority/32UF,Economic Development,Professional and Contractors Fees,13/12/2022,30024193,"1,565.00 ",Robert Doughty Consultancy
South Holland District Council,http://statistics.data.gov.uk/id/local-authority/32UF,Economic Development,Professional and Contractors Fees,20/12/2022,30024534,"4,725.00 ",East Lindsey District Council
South Holland District Council,http://statistics.data.gov.uk/id/local-authority/32UF,Environmental Services,Agency Staff,02/12/2022,30023857,561.29 ,Blue Arrow Ltd
South Holland District Council,http://statistics.data.gov.uk/id/local-authority/32UF,Environmental Services,Agency Staff,06/12/2022,30023858,798.09 ,The Best Connection Group Ltd
South Holland District Council,http://statistics.data.gov.uk/id/local-authority/32UF,Environmental Services,Agency Staff,02/12/2022,30023860,"2,300.12 ",Quality Service Recruitment Ltd
South Holland District Council,http://statistics.data.gov.uk/id/local-authority/32UF,Environmental Services,Agency Staff,02/12/2022,30023861,642.96 ,Questech Recruitment Limited
South Holland District Council,http://statistics.data.gov.uk/id/local-authority/32UF,Environmental Services,Agency Staff,02/12/2022,30023862,826.80 ,Questech Recruitment Limited
South Holland District Council,http://statistics.data.gov.uk/id/local-authority/32UF,Environmental Services,Agency Staff,15/12/2022,30023863,992.16 ,Questech Recruitment Limited
South Holland District Council,http://statistics.data.gov.uk/id/local-authority/32UF,Environmental Services,Agency Staff,02/12/2022,30023864,561.29 ,Blue Arrow Ltd
South Holland District Council,http://statistics.data.gov.uk/id/local-authority/32UF,Environmental Services,Agency Staff,02/12/2022,30023865,561.29 ,Blue Arrow Ltd
South Holland District Council,http://statistics.data.gov.uk/id/local-authority/32UF,Environmental Services,Agency Staff,02/12/2022,30023866,561.29 ,Blue Arrow Ltd
South Holland District Council,http://statistics.data.gov.uk/id/local-authority/32UF,Environmental Services,Agency Staff,02/12/2022,30023868,561.29 ,Blue Arrow Ltd
South Holland District Council,http://statistics.data.gov.uk/id/local-authority/32UF,Environmental Services,Agency Staff,06/12/2022,30023869,561.29 ,Blue Arrow Ltd
South Holland District Council,http://statistics.data.gov.uk/id/local-authority/32UF,Environmental Services,Agency Staff,06/12/2022,30023876,449.03 ,Blue Arrow Ltd
South Holland District Council,http://statistics.data.gov.uk/id/local-authority/32UF,Environmental Services,Agency Staff,06/12/2022,30023907,"2,086.48 ",Workchain
South Holland District Council,http://statistics.data.gov.uk/id/local-authority/32UF,Environmental Services,Agency Staff,22/12/2022,30023981,"1,033.50 ",Questech Recruitment Limited
South Holland District Council,http://statistics.data.gov.uk/id/local-authority/32UF,Environmental Services,Agency Staff,06/12/2022,30023982,"4,165.18 ",Integrity Plus Ltd
South Holland District Council,http://statistics.data.gov.uk/id/local-authority/32UF,Environmental Services,Agency Staff,08/12/2022,30024004,806.18 ,The Best Connection Group Ltd
South Holland District Council,http://statistics.data.gov.uk/id/local-authority/32UF,Environmental Services,Agency Staff,08/12/2022,30024007,"2,410.24 ",NJW Services
South Holland District Council,http://statistics.data.gov.uk/id/local-authority/32UF,Environmental Services,Agency Staff,08/12/2022,30024136,"3,492.65 ",Integrity Plus Ltd
South Holland District Council,http://statistics.data.gov.uk/id/local-authority/32UF,Environmental Services,Agency Staff,13/12/2022,30024138,"1,855.39 ",Encore Personnel Services Ltd
South Holland District Council,http://statistics.data.gov.uk/id/local-authority/32UF,Environmental Services,Agency Staff,13/12/2022,30024139,944.07 ,Encore Personnel Services Ltd
South Holland District Council,http://statistics.data.gov.uk/id/local-authority/32UF,Environmental Services,Agency Staff,08/12/2022,30024140,"1,870.51 ",Quality Service Recruitment Ltd
South Holland District Council,http://statistics.data.gov.uk/id/local-authority/32UF,Environmental Services,Agency Staff,22/12/2022,30024233,"1,033.50 ",Questech Recruitment Limited
South Holland District Council,http://statistics.data.gov.uk/id/local-authority/32UF,Environmental Services,Agency Staff,13/12/2022,30024240,"2,008.75 ",Workchain
South Holland District Council,http://statistics.data.gov.uk/id/local-authority/32UF,Environmental Services,Agency Staff,15/12/2022,30024316,"1,703.81 ",Encore Personnel Services Ltd
South Holland District Council,http://statistics.data.gov.uk/id/local-authority/32UF,Environmental Services,Agency Staff,15/12/2022,30024318,"2,262.53 ",Encore Personnel Services Ltd
South Holland District Council,http://statistics.data.gov.uk/id/local-authority/32UF,Environmental Services,Agency Staff,15/12/2022,30024319,"2,398.86 ",Encore Personnel Services Ltd
South Holland District Council,http://statistics.data.gov.uk/id/local-authority/32UF,Environmental Services,Agency Staff,15/12/2022,30024320,"2,031.30 ",Encore Personnel Services Ltd
South Holland District Council,http://statistics.data.gov.uk/id/local-authority/32UF,Environmental Services,Agency Staff,15/12/2022,30024321,"2,526.96 ",Encore Personnel Services Ltd
South Holland District Council,http://statistics.data.gov.uk/id/local-authority/32UF,Environmental Services,Agency Staff,15/12/2022,30024322,"1,467.05 ",Encore Personnel Services Ltd
South Holland District Council,http://statistics.data.gov.uk/id/local-authority/32UF,Environmental Services,Agency Staff,15/12/2022,30024323,"2,144.15 ",Encore Personnel Services Ltd
South Holland District Council,http://statistics.data.gov.uk/id/local-authority/32UF,Environmental Services,Agency Staff,15/12/2022,30024324,"1,579.90 ",Encore Personnel Services Ltd
South Holland District Council,http://statistics.data.gov.uk/id/local-authority/32UF,Environmental Services,Agency Staff,15/12/2022,30024341,798.09 ,The Best Connection Group Ltd
South Holland District Council,http://statistics.data.gov.uk/id/local-authority/32UF,Environmental Services,Agency Staff,20/12/2022,30024399,539.83 ,Capital Outsourcing Group Food
South Holland District Council,http://statistics.data.gov.uk/id/local-authority/32UF,Environmental Services,Agency Staff,20/12/2022,30024400,539.83 ,Capital Outsourcing Group Food
South Holland District Council,http://statistics.data.gov.uk/id/local-authority/32UF,Environmental Services,Agency Staff,20/12/2022,30024401,539.83 ,Capital Outsourcing Group Food
South Holland District Council,http://statistics.data.gov.uk/id/local-authority/32UF,Environmental Services,Agency Staff,20/12/2022,30024402,539.83 ,Capital Outsourcing Group Food
South Holland District Council,http://statistics.data.gov.uk/id/local-authority/32UF,Environmental Services,Agency Staff,20/12/2022,30024403,539.83 ,Capital Outsourcing Group Food
South Holland District Council,http://statistics.data.gov.uk/id/local-authority/32UF,Environmental Services,Agency Staff,20/12/2022,30024404,461.04 ,Capital Outsourcing Group Food
South Holland District Council,http://statistics.data.gov.uk/id/local-authority/32UF,Environmental Services,Agency Staff,20/12/2022,30024405,539.83 ,Capital Outsourcing Group Food
South Holland District Council,http://statistics.data.gov.uk/id/local-authority/32UF,Environmental Services,Agency Staff,20/12/2022,30024406,539.83 ,Capital Outsourcing Group Food
South Holland District Council,http://statistics.data.gov.uk/id/local-authority/32UF,Environmental Services,Agency Staff,15/12/2022,30024408,"1,440.88 ",Quality Service Recruitment Ltd
South Holland District Council,http://statistics.data.gov.uk/id/local-authority/32UF,Environmental Services,Agency Staff,15/12/2022,30024412,"3,310.34 ",Integrity Plus Ltd
South Holland District Council,http://statistics.data.gov.uk/id/local-authority/32UF,Environmental Services,Agency Staff,15/12/2022,30024414,808.60 ,Integrity Plus Ltd
South Holland District Council,http://statistics.data.gov.uk/id/local-authority/32UF,Environmental Services,Agency Staff,15/12/2022,30024451,"2,157.27 ",Workchain
South Holland District Council,http://statistics.data.gov.uk/id/local-authority/32UF,Environmental Services,Agency Staff,20/12/2022,30024557,593.92 ,Capital Outsourcing Group Food
South Holland District Council,http://statistics.data.gov.uk/id/local-authority/32UF,Environmental Services,Agency Staff,20/12/2022,30024558,615.82 ,Capital Outsourcing Group Food
South Holland District Council,http://statistics.data.gov.uk/id/local-authority/32UF,Environmental Services,Agency Staff,20/12/2022,30024575,"1,987.49 ",Workchain
South Holland District Council,http://statistics.data.gov.uk/id/local-authority/32UF,Environmental Services,Agency Staff,22/12/2022,30024621,798.09 ,The Best Connection Group Ltd
South Holland District Council,http://statistics.data.gov.uk/id/local-authority/32UF,Environmental Services,Agency Staff,22/12/2022,30024623,"2,428.67 ",Quality Service Recruitment Ltd
South Holland District Council,http://statistics.data.gov.uk/id/local-authority/32UF,Environmental Services,Agency Staff,03/01/2023,30024656,712.91 ,Encore Personnel Services Ltd
South Holland District Council,http://statistics.data.gov.uk/id/local-authority/32UF,Environmental Services,Agency Staff,03/01/2023,30024657,"1,629.68 ",Encore Personnel Services Ltd
South Holland District Council,http://statistics.data.gov.uk/id/local-authority/32UF,Environmental Services,Fuel and Oil,06/12/2022,30023808,719.94 ,Witham Oil and Paint Ltd
South Holland District Council,http://statistics.data.gov.uk/id/local-authority/32UF,Environmental Services,Fuel and Oil,08/12/2022,30024119,"8,891.74 ",C H Jones Ltd
South Holland District Council,http://statistics.data.gov.uk/id/local-authority/32UF,Environmental Services,Fuel and Oil,20/12/2022,30024578,"8,872.69 ",C H Jones Ltd
South Holland District Council,http://statistics.data.gov.uk/id/local-authority/32UF,Environmental Services,Fuel and Oil,22/12/2022,30024620,"8,504.46 ",C H Jones Ltd
South Holland District Council,http://statistics.data.gov.uk/id/local-authority/32UF,Environmental Services,Furniture and Equipment,05/01/2023,30024347,749.33 ,Russells Kirbymoorside Ltd
South Holland District Council,http://statistics.data.gov.uk/id/local-authority/32UF,Environmental Services,Furniture and Equipment,15/12/2022,30024370,"1,600.00 ",Westons Garden Machinery Ltd
South Holland District Council,http://statistics.data.gov.uk/id/local-authority/32UF,Environmental Services,Furniture and Equipment,15/12/2022,30024372,"2,110.00 ",Westons Garden Machinery Ltd
South Holland District Council,http://statistics.data.gov.uk/id/local-authority/32UF,Environmental Services,Furniture and Equipment,22/12/2022,30024448,463.26 ,Bryan Coupland Ltd
South Holland District Council,http://statistics.data.gov.uk/id/local-authority/32UF,Environmental Services,Furniture and Equipment,05/01/2023,30024502,490.00 ,Russells Kirbymoorside Ltd
South Holland District Council,http://statistics.data.gov.uk/id/local-authority/32UF,Environmental Services,Grounds Maintenance Contract (External),22/12/2022,30024435,"2,700.00 ",Greenscape Tree Safe Ltd
South Holland District Council,http://statistics.data.gov.uk/id/local-authority/32UF,Environmental Services,Materials and Consumables,22/12/2022,30023908,"14,703.11 ",Berry BPI Refuse
South Holland District Council,http://statistics.data.gov.uk/id/local-authority/32UF,Environmental Services,Materials and Consumables,13/12/2022,30024283,706.20 ,JR DALY LTD t/a AUTOSMART
South Holland District Council,http://statistics.data.gov.uk/id/local-authority/32UF,Environmental Services,Other Miscellaneous Expenses,13/12/2022,30024226,899.00 ,Classic Printers Crowland Ltd
South Holland District Council,http://statistics.data.gov.uk/id/local-authority/32UF,Environmental Services,Professional and Contractors Fees,15/12/2022,30023198,850.00 ,Weaar
South Holland District Council,http://statistics.data.gov.uk/id/local-authority/32UF,Environmental Services,Professional and Contractors Fees,08/12/2022,30023882,"1,674.28 ",Lincolnshire County Council
South Holland District Council,http://statistics.data.gov.uk/id/local-authority/32UF,Environmental Services,Professional and Contractors Fees,22/12/2022,30023886,"1,068.36 ",Kings Armoured Security Services Ltd
South Holland District Council,http://statistics.data.gov.uk/id/local-authority/32UF,Environmental Services,Professional and Contractors Fees,22/12/2022,30024189,"1,150.00 ",Weaar
South Holland District Council,http://statistics.data.gov.uk/id/local-authority/32UF,Environmental Services,Professional and Contractors Fees,13/12/2022,30024272,452.80 ,Licence Bureau Limited
South Holland District Council,http://statistics.data.gov.uk/id/local-authority/32UF,Environmental Services,Professional and Contractors Fees,22/12/2022,30024292,529.00 ,Vision Techniques U K Ltd
South Holland District Council,http://statistics.data.gov.uk/id/local-authority/32UF,Environmental Services,Professional and Contractors Fees,22/12/2022,30024439,"1,029.00 ",Lincolnshire County Council
South Holland District Council,http://statistics.data.gov.uk/id/local-authority/32UF,Environmental Services,Professional and Contractors Fees,20/12/2022,30024441,"2,089.31 ",Lincolnshire County Council
South Holland District Council,http://statistics.data.gov.uk/id/local-authority/32UF,Environmental Services,Professional and Contractors Fees,20/12/2022,30024579,"1,067.70 ",Lincolnshire County Council
South Holland District Council,http://statistics.data.gov.uk/id/local-authority/32UF,Environmental Services,Tyres,20/12/2022,30024457,"5,326.95 ",Vaculug Technologies Ltd
South Holland District Council,http://statistics.data.gov.uk/id/local-authority/32UF,Environmental Services,Workshop Parts,20/12/2022,30023843,512.75 ,Ford and Slater DAF
South Holland District Council,http://statistics.data.gov.uk/id/local-authority/32UF,Environmental Services,Workshop Parts,22/12/2022,30024022,610.20 ,Fleet Factors Ltd
South Holland District Council,http://statistics.data.gov.uk/id/local-authority/32UF,Environmental Services,Workshop Parts,22/12/2022,30024373,571.94 ,Fleet Factors Ltd
South Holland District Council,http://statistics.data.gov.uk/id/local-authority/32UF,Environmental Services,Workshop Parts,20/12/2022,30024569,514.70 ,Ford and Slater DAF
South Holland District Council,http://statistics.data.gov.uk/id/local-authority/32UF,Environmental Services,Workshop Parts,20/12/2022,30024573,576.51 ,Ford and Slater DAF
South Holland District Council,http://statistics.data.gov.uk/id/local-authority/32UF,Finance,Agency Staff,13/12/2022,30024108,938.00 ,Pay Stream My Max 3 Limited
South Holland District Council,http://statistics.data.gov.uk/id/local-authority/32UF,Finance,Agency Staff,22/12/2022,30024516,938.00 ,Pay Stream My Max 3 Limited
South Holland District Council,http://statistics.data.gov.uk/id/local-authority/32UF,Finance,Grants and Contributions to Outside Bodies - No Service Received,08/12/2022,30024120,"20,000.00 ",Charis Grants Ltd
South Holland District Council,http://statistics.data.gov.uk/id/local-authority/32UF,Finance,Professional and Contractors Fees,03/01/2023,30024297,"1,000.00 ",Ichabod's Industries Ltd
South Holland District Council,http://statistics.data.gov.uk/id/local-authority/32UF,Finance,Public Sector Partnership Services,05/01/2023,30024532,"253,689.08 ",Public Sector Partnership Services Ltd
South Holland District Council,http://statistics.data.gov.uk/id/local-authority/32UF,Finance,Purchase of Hardware,15/12/2022,30021190,"5,370.08 ",Softcat Plc
South Holland District Council,http://statistics.data.gov.uk/id/local-authority/32UF,Head of HR & Organisational Development,Other Employee Expenses,20/12/2022,30024415,"1,535.00 ",Public Sector Partnership Services Ltd
South Holland District Council,http://statistics.data.gov.uk/id/local-authority/32UF,Head of HR & Organisational Development,Other Income,13/12/2022,30024178,20.12 ,Fideliti Limited
South Holland District Council,http://statistics.data.gov.uk/id/local-authority/32UF,Head of HR & Organisational Development,Other Income,13/12/2022,30024185,-27.81 ,Unison
South Holland District Council,http://statistics.data.gov.uk/id/local-authority/32UF,Head of ICT and Digital,Materials and Consumables,22/12/2022,30024201,710.30 ,Probrand Ltd
South Holland District Council,http://statistics.data.gov.uk/id/local-authority/32UF,Head of ICT and Digital,Telephones,20/12/2022,30024109,"2,176.26 ",British Telecom Corporate Plc
South Holland District Council,http://statistics.data.gov.uk/id/local-authority/32UF,Head of ICT and Digital,Telephones,20/12/2022,30024126,"39,067.00 ",Vodafone Ltd Corporate
South Holland District Council,http://statistics.data.gov.uk/id/local-authority/32UF,Head of ICT and Digital,Telephones,20/12/2022,30024381,"2,752.27 ",Vodafone Ltd Corporate
South Holland District Council,http://statistics.data.gov.uk/id/local-authority/32UF,Head of ICT and Digital,Telephones,20/12/2022,30024449,468.75 ,Vodafone Ltd Corporate
South Holland District Council,http://statistics.data.gov.uk/id/local-authority/32UF,Head of Revenues and Benefits,External Audit Fees,22/12/2022,30024577,"5,750.00 ",KPMG LLP
South Holland District Council,http://statistics.data.gov.uk/id/local-authority/32UF,Health & Communities,Other Miscellaneous Expenses,02/12/2022,30023751,755.00 ,Tears Of Sutton Bridge Ltd
South Holland District Council,http://statistics.data.gov.uk/id/local-authority/32UF,Housing,Buildings Maintenance - Responsive,05/01/2023,30024418,498.30 ,M-Fire Ltd
South Holland District Council,http://statistics.data.gov.uk/id/local-authority/32UF,Leisure & Culture Communities,Agency - Overtime Cover,15/12/2022,30024368,"1,666.67 ",Independent Event Management Ltd
South Holland District Council,http://statistics.data.gov.uk/id/local-authority/32UF,Leisure & Culture Communities,Agency Staff,13/12/2022,30024123,437.25 ,Integrity Plus Ltd
South Holland District Council,http://statistics.data.gov.uk/id/local-authority/32UF,Leisure & Culture Communities,Computer Hardware Maintenance,22/12/2022,30024215,"1,783.42 ",Spektrix Ltd
South Holland District Council,http://statistics.data.gov.uk/id/local-authority/32UF,Leisure & Culture Communities,Film and Entertainment Costs,13/12/2022,30024250,771.75 ,Entertainment Film Distribution Ltd
South Holland District Council,http://statistics.data.gov.uk/id/local-authority/32UF,Leisure & Culture Communities,Fixtures and Fittings,20/12/2022,30024342,565.00 ,Pro- Servicing Ltd
South Holland District Council,http://statistics.data.gov.uk/id/local-authority/32UF,Leisure & Culture Communities,Gas,08/12/2022,30024072,520.16 ,Espo Gas and Electricity
South Holland District Council,http://statistics.data.gov.uk/id/local-authority/32UF,Leisure & Culture Communities,Other Income,08/12/2022,30024023,"-1,683.50 ",Live Promotions Events Ltd
South Holland District Council,http://statistics.data.gov.uk/id/local-authority/32UF,Leisure & Culture Communities,Other Income,13/12/2022,30024125,"-5,299.30 ",Spalding Amateur Dramatic and Operatic Society
South Holland District Council,http://statistics.data.gov.uk/id/local-authority/32UF,Leisure & Culture Communities,Other Income,20/12/2022,30024522,-486.35 ,Act II
South Holland District Council,http://statistics.data.gov.uk/id/local-authority/32UF,Leisure & Culture Communities,Other Income,20/12/2022,30024523,-825.35 ,Act II
South Holland District Council,http://statistics.data.gov.uk/id/local-authority/32UF,Leisure & Culture Communities,Other Income,20/12/2022,30024524,"-2,215.80 ",Polka Dot Dance Academy
South Holland District Council,http://statistics.data.gov.uk/id/local-authority/32UF,Leisure & Culture Communities,Other Income,03/01/2023,30024613,"-1,954.92 ",Spalding Hospice Foundation
South Holland District Council,http://statistics.data.gov.uk/id/local-authority/32UF,Leisure & Culture Communities,Other Miscellaneous Expenses,15/12/2022,30024369,204.00 ,South Lincs Security Limited
South Holland District Council,http://statistics.data.gov.uk/id/local-authority/32UF,Leisure & Culture Communities,Payments to Bodies in Respect of Income Collected,08/12/2022,30024023,"4,750.00 ",Live Promotions Events Ltd
South Holland District Council,http://statistics.data.gov.uk/id/local-authority/32UF,Leisure & Culture Communities,Payments to Bodies in Respect of Income Collected,13/12/2022,30024125,"13,163.00 ",Spalding Amateur Dramatic and Operatic Society
South Holland District Council,http://statistics.data.gov.uk/id/local-authority/32UF,Leisure & Culture Communities,Payments to Bodies in Respect of Income Collected,20/12/2022,30024522,"1,013.50 ",Act II
South Holland District Council,http://statistics.data.gov.uk/id/local-authority/32UF,Leisure & Culture Communities,Payments to Bodies in Respect of Income Collected,20/12/2022,30024523,"1,953.50 ",Act II
South Holland District Council,http://statistics.data.gov.uk/id/local-authority/32UF,Leisure & Culture Communities,Payments to Bodies in Respect of Income Collected,20/12/2022,30024524,"9,098.00 ",Polka Dot Dance Academy
South Holland District Council,http://statistics.data.gov.uk/id/local-authority/32UF,Leisure & Culture Communities,Payments to Bodies in Respect of Income Collected,03/01/2023,30024613,"9,128.00 ",Spalding Hospice Foundation
South Holland District Council,http://statistics.data.gov.uk/id/local-authority/32UF,Leisure & Culture Communities,Performers and Entertainers Fees,13/12/2022,30024263,"1,440.00 ",Rubys and Diamonds
South Holland District Council,http://statistics.data.gov.uk/id/local-authority/32UF,Leisure & Culture Communities,Performers and Entertainers Fees,20/12/2022,30024315,"26,883.66 ",Polka Dot Pantomimes
South Holland District Council,http://statistics.data.gov.uk/id/local-authority/32UF,Leisure & Culture Communities,Professional and Contractors Fees,15/12/2022,30023967,"1,050.00 ",GBSG Ltd
South Holland District Council,http://statistics.data.gov.uk/id/local-authority/32UF,Leisure & Culture Communities,Professional and Contractors Fees,15/12/2022,30024024,"1,197.40 ",Max Associates Holdings Ltd
South Holland District Council,http://statistics.data.gov.uk/id/local-authority/32UF,Leisure & Culture Communities,Professional and Contractors Fees,13/12/2022,30024025,"1,496.75 ",Max Associates Holdings Ltd
South Holland District Council,http://statistics.data.gov.uk/id/local-authority/32UF,Leisure & Culture Communities,Professional and Contractors Fees,13/12/2022,30024174,840.00 ,Agenda Cleaning Services
South Holland District Council,http://statistics.data.gov.uk/id/local-authority/32UF,Leisure & Culture Communities,Professional and Contractors Fees,13/12/2022,30024288,840.00 ,Agenda Cleaning Services
South Holland District Council,http://statistics.data.gov.uk/id/local-authority/32UF,Leisure & Culture Communities,Professional and Contractors Fees,15/12/2022,30024367,833.33 ,Independent Event Management Ltd
South Holland District Council,http://statistics.data.gov.uk/id/local-authority/32UF,Leisure & Culture Communities,Purchase of Goods for Resale,22/12/2022,30024248,"1,202.00 ",Bidfood
South Holland District Council,http://statistics.data.gov.uk/id/local-authority/32UF,Leisure & Culture Communities,Purchase of Goods for Resale,22/12/2022,30024476,435.20 ,Pilgrim Foodservice Ltd
South Holland District Council,http://statistics.data.gov.uk/id/local-authority/32UF,Leisure & Culture Communities,Water and Sewerage Charges,08/12/2022,30024111,"1,655.30 ",Wave
South Holland District Council,http://statistics.data.gov.uk/id/local-authority/32UF,Leisure & Culture Communities,Water and Sewerage Charges,20/12/2022,30024478,"1,655.30 ",Wave
South Holland District Council,http://statistics.data.gov.uk/id/local-authority/32UF,Planning,Agency - Vacant Post Cover,22/12/2022,30024191,"1,483.65 ",Vivid Resourcing
South Holland District Council,http://statistics.data.gov.uk/id/local-authority/32UF,Planning,Agency - Vacant Post Cover,03/01/2023,30024669,"1,471.80 ",Vivid Resourcing
South Holland District Council,http://statistics.data.gov.uk/id/local-authority/32UF,Public Protection,Furniture and Equipment,22/12/2022,30024265,"10,285.00 ",Acoustics Noise and Vibration Limited
South Holland District Council,http://statistics.data.gov.uk/id/local-authority/32UF,Public Protection,Legal Fees,08/12/2022,30019178,"3,000.00 ",Maples Solicitors LLP
South Holland District Council,http://statistics.data.gov.uk/id/local-authority/32UF,Public Protection,Professional and Contractors Fees,22/12/2022,30023870,"1,392.68 ",The Oyster Partnership Ltd
South Holland District Council,http://statistics.data.gov.uk/id/local-authority/32UF,Public Protection,Professional and Contractors Fees,22/12/2022,30024224,"2,500.00 ",Ocella Ltd
South Holland District Council,http://statistics.data.gov.uk/id/local-authority/32UF,Public Protection,Professional and Contractors Fees,22/12/2022,30024241,"1,392.68 ",The Oyster Partnership Ltd
South Holland District Council,http://statistics.data.gov.uk/id/local-authority/32UF,Public Protection,Professional and Contractors Fees,20/12/2022,30024353,"18,503.11 ",Lincolnshire County Council
South Holland District Council,http://statistics.data.gov.uk/id/local-authority/32UF,Public Protection,Professional and Contractors Fees,03/01/2023,30024675,"18,503.11 ",Lincolnshire County Council
South Holland District Council,http://statistics.data.gov.uk/id/local-authority/32UF,South Holland Balance Sheet,ST Debtors HB Overpayments Control Account,08/12/2022,30024061,697.45 ,"""personal information redacted"""
South Holland District Council,http://statistics.data.gov.uk/id/local-authority/32UF,South Holland Balance Sheet,Un-coded Invoices Suspense Account,08/12/2022,30023912,"1,852.50 ",The Red Lion Hotel
